bitfinex/quotes_SOLUSD_20240603
["timestamp","ask_amount","ask_price","bid_price","bid_amount"]
[1717419457648,2.2191,166.73,166.67,38.2999]
[1717419457846,2.2191,166.73,166.67,36.08]
[1717419458149,2.2191,166.73,166.67,38.2999]
[1717419458875,2.219,166.74,166.67,38.2999]
[1717419459279,6.6562,166.76,166.67,36.08]
[1717419459447,4.4378,166.75,166.67,36.08]
[1717419459878,2.2194,166.72,166.67,36.08]
[1717419460169,4.4378,166.75,166.67,36.08]
[1717419460170,2.2194,166.71,166.67,36.08]
[1717419460359,2.2193,166.72,166.67,36.08]
[1717419461041,2.2194,166.71,166.67,36.08]
[1717419461673,7.05181333,166.72,166.67,36.08]
[1717419462245,4.83251333,166.72,166.67,36.08]
[1717419462744,2.2194,166.71,166.67,36.08]
[1717419462943,7.05181333,166.72,166.67,36.08]
[1717419463665,2.2194,166.71,166.67,36.08]
[1717419463969,2.2195,166.7,166.63,2.2204]
[1717419464472,2.2195,166.7,166.64,36.08]
[1717419465179,2.2196,166.69,166.64,36.08]
[1717419465355,2.2196,166.69,166.63,36.08]
[1717419465547,2.2198,166.68,166.63,42.7131]
[1717419465975,2.2197,166.69,166.63,42.7131]
[1717419466664,2.2195,166.7,166.64,2.2203]
[1717419466874,2.2194,166.71,166.65,0.97927769]
[1717419467083,4.83251333,166.72,166.65,0.97927769]
[1717419467084,2.2195,166.7,166.65,0.97927769]
[1717419467248,2.2195,166.7,166.64,2.2203]
[1717419467451,2.2195,166.7,166.63,44.9335]
[1717419467674,2.2195,166.7,166.64,2.2203]
[1717419468671,2.2195,166.7,166.63,42.7131]
[1717419468879,2.2197,166.69,166.63,44.9335]
[1717419469391,2.2195,166.7,166.64,2.2203]
[1717419470252,2.2197,166.69,166.63,44.9335]
[1717419470965,2.2195,166.7,166.63,44.9335]
[1717419471277,2.2195,166.7,166.64,2.2203]
[1717419471671,2.2195,166.7,166.63,44.9335]
[1717419471852,2.2196,166.69,166.63,44.9335]
[1717419472482,2.2196,166.69,166.64,30.0]
[1717419472676,2.2196,166.69,166.65,36.08]
[1717419472883,2.2196,166.7,166.65,42.1414]
[1717419473484,2.2196,166.69,166.65,42.1414]
[1717419473664,4.83251333,166.72,166.67,36.08]
[1717419473855,2.2196,166.7,166.67,36.08]
[1717419474064,2.2197,166.69,166.67,36.08]
[1717419474550,2.2197,166.69,166.67,66.08]
[1717419474954,2.2195,166.71,166.67,66.08]
[1717419475153,4.83251333,166.72,166.67,66.08]
[1717419475474,2.2196,166.7,166.67,66.08]
[1717419476360,4.83251333,166.72,166.67,66.08]
[1717419476361,2.2196,166.69,166.67,66.08]
[1717419476781,2.2195,166.7,166.67,66.08]
[1717419477275,2.2196,166.69,166.67,66.08]
[1717419477479,2.2195,166.7,166.67,66.08]
[1717419479466,2.2197,166.69,166.67,66.08]
[1717419481968,6.92,166.68,166.63,2.2204]
[1717419482167,6.92,166.67,166.66,36.08]
[1717419482369,9.14,166.67,166.65,30.0]
[1717419482675,6.92,166.66,166.65,30.0]
[1717419483584,9.14,166.66,166.65,30.0]
[1717419484087,6.92,166.66,166.6,38.3008]
[1717419484388,2.2199,166.67,166.6,38.3008]
[1717419484389,6.92,166.63,166.61,36.08]
[1717419485397,6.92,166.64,166.61,42.7087]
[1717419485766,2.2201,166.66,166.61,42.7087]
[1717419485966,2.2202,166.65,166.6,36.08]
[1717419486168,6.92,166.62,166.6,36.08]
[1717419488782,6.92,166.63,166.61,36.08]
[1717419489508,2.2201,166.66,166.61,36.08]
[1717419489674,6.92,166.63,166.61,36.08]
[1717419489875,2.2195,166.7,166.62,36.08]
[1717419490074,6.92,166.67,166.64,36.08]
[1717419490695,6.92,166.66,166.64,36.08]
[1717419490876,6.92,166.67,166.64,36.08]
[1717419491068,6.92,166.66,166.64,36.08]
[1717419491511,2.2198,166.68,166.64,36.08]
[1717419491673,6.92,166.65,166.64,36.08]
[1717419492600,6.92,166.65,166.61,38.3007]
[1717419492815,2.22,166.67,166.61,44.7072]
[1717419492976,6.92,166.64,166.61,42.4865]
[1717419493303,6.92,166.62,166.61,36.08]
[1717419493595,6.92,166.62,166.58,38.3011]
[1717419493771,2.2202,166.65,166.58,44.8557]
[1717419493976,6.92,166.61,166.58,44.8557]
[1717419494197,2.2202,166.65,166.59,2.221]
[1717419494399,2.2201,166.66,166.59,2.221]
[1717419494998,2.2201,166.66,166.6,2.2208]
[1717419495708,2.2201,166.66,166.59,2.2209]
[1717419496213,2.2202,166.65,166.59,2.2209]
[1717419496411,2.2207,166.61,166.59,36.08]
[1717419497188,2.2209,166.6,166.55,36.08]
[1717419497410,17.30176442,166.65,166.55,36.08]
[1717419497582,6.6606,166.66,166.55,36.08]
[1717419497583,2.2211,166.59,166.55,36.08]
[1717419498495,2.2211,166.59,166.53,2.2217]
[1717419500290,2.2205,166.63,166.54,0.17]
[1717419500492,19.7194,166.67,166.54,0.34]
[1717419500493,2.2207,166.62,166.54,0.34]
[1717419500823,16.643,166.64,166.53,36.08]
[1717419501119,4.442,166.59,166.53,36.08]
[1717419501422,2.2213,166.57,166.51,2.222]
[1717419501897,2.2214,166.56,166.5,2.2222]
[1717419502413,2.2216,166.55,166.47,36.08]
[1717419502816,4.96016382,166.56,166.48,36.08]
[1717419503312,2.2217,166.54,166.48,38.3023]
[1717419503801,9.40296382,166.56,166.48,36.08]
[1717419503989,2.2218,166.53,166.48,36.08]
[1717419504801,2.2218,166.53,166.47,2.2226]
[1717419505000,2.2217,166.54,166.48,2.2224]
[1717419505716,2.2218,166.53,166.47,2.2225]
[1717419506803,2.2217,166.54,166.47,2.2225]
[1717419507206,2.2217,166.54,166.48,2.3924]
[1717419507394,2.2217,166.54,166.48,2.2224]
[1717419507599,2.2218,166.53,166.47,2.2225]
[1717419507914,2.2217,166.54,166.48,2.2224]
[1717419508496,2.2217,166.54,166.47,2.2225]
[1717419508719,2.2218,166.53,166.48,0.17]
[1717419509594,2.2218,166.53,166.47,2.2225]
[1717419510804,4.96016382,166.56,166.46,0.34]
[1717419511000,2.2218,166.53,166.46,38.3026]
[1717419511223,4.96016382,166.56,166.46,36.08]
[1717419511916,4.96016382,166.56,166.44,36.08]
[1717419512119,4.96016382,166.56,166.46,36.08]
[1717419512328,2.2219,166.53,166.47,2.2225]
[1717419513605,2.2217,166.54,166.48,2.2224]
[1717419514208,2.2218,166.53,166.48,2.2224]
[1717419514414,2.2218,166.53,166.47,2.2225]
[1717419516217,6.93,166.5,166.47,2.2225]
[1717419517329,6.93,166.49,166.46,36.08]
[1717419517530,6.93,166.48,166.46,36.08]
[1717419517831,6.93,166.49,166.46,36.08]
[1717419518532,6.93,166.48,166.46,36.08]
[1717419518733,6.93,166.48,166.46,38.3027]
[1717419518918,6.93,166.49,166.46,36.08]
[1717419519117,6.93,166.49,166.46,38.3027]
[1717419519450,6.93,166.49,166.46,2.2227]
[1717419519920,6.93,166.49,166.45,2.2228]
[1717419520628,2.2221,166.51,166.45,2.2228]
[1717419520862,6.93,166.48,166.45,2.2228]
[1717419521207,6.93,166.49,166.45,2.2228]
[1717419521606,2.222,166.52,166.46,2.2227]
[1717419521908,6.93,166.5,166.46,2.2227]
[1717419523936,6.93,166.49,166.45,2.2228]
[1717419524323,6.93,166.56,166.45,36.08]
[1717419524503,6.93,166.47,166.45,36.08]
[1717419525249,6.93,166.47,166.45,36.04995]
[1717419525538,6.93,166.47,166.43,2.2231]
[1717419526246,6.93,166.47,166.44,2.223]
[1717419527131,6.93,166.47,166.43,2.2231]
[1717419527334,6.93,166.47,166.42,2.2232]
[1717419528216,2.2225,166.48,166.42,2.2232]
[1717419528623,2.2225,166.48,166.43,2.2231]
[1717419529231,6.93,166.47,166.43,2.2231]
[1717419530166,2.2224,166.49,166.42,35.98985]
[1717419530167,6.93,166.49,166.45,2.2228]
[1717419531146,6.93,166.49,166.44,2.3929]
[1717419531650,6.93,166.49,166.44,0.17]
[1717419531955,6.93,166.52,166.49,2.2222]
[1717419532263,2.2214,166.57,166.48,36.32985]
[1717419532437,2.2214,166.57,166.48,43.08985]
[1717419532438,6.93,166.55,166.48,43.08985]
[1717419532636,2.2212,166.58,166.51,2.222]
[1717419532844,2.221,166.59,166.52,2.2218]
[1717419533153,6.6129,166.6,166.53,0.17]
[1717419533356,6.1221,166.64,166.53,0.34]
[1717419534134,2.2206,166.62,166.53,0.34]
[1717419534332,6.1221,166.64,166.56,2.2214]
[1717419534333,8.3425,166.64,166.56,2.2214]
[1717419534538,2.2205,166.63,166.57,2.3912]
[1717419534740,2.2205,166.63,166.57,0.17]
[1717419535134,8.8803,166.66,166.55,0.17]
[1717419535341,8.8803,166.66,166.55,0.34]
[1717419535342,2.2209,166.6,166.55,0.34]
[1717419535542,2.221,166.59,166.54,0.34]
[1717419536130,2.2209,166.6,166.54,0.34]
[1717419536436,2.2209,166.6,166.54,36.32985]
[1717419537067,2.2207,166.61,166.54,38.55145]
[1717419537360,2.2206,166.62,166.55,2.2215]
[1717419537554,2.2206,166.62,166.56,0.17]
[1717419537764,2.2204,166.63,166.56,2.5613]
[1717419538370,2.2206,166.62,166.56,0.34]
[1717419539063,2.2203,166.64,166.57,2.2211]
[1717419539244,2.2203,166.64,166.58,0.34]
[1717419540085,2.2202,166.65,166.58,2.5611]
[1717419541270,2.22,166.67,166.6,2.2208]
[1717419541572,12.7503,166.72,166.61,36.32985]
[1717419541573,2.2198,166.68,166.61,36.32985]
[1717419541772,2.2198,166.68,166.61,38.55055]
[1717419542147,2.22,166.67,166.61,36.32985]
[1717419542578,2.2198,166.68,166.61,2.5607]
[1717419542881,2.2199,166.67,166.61,2.5607]
[1717419543773,2.2198,166.68,166.61,2.5607]
[1717419544182,2.2199,166.67,166.61,0.34]
[1717419544544,2.2199,166.67,166.59,35.98985]
[1717419544545,2.2199,166.67,166.6,0.34]
[1717419544745,2.2199,166.67,166.6,2.5608]
[1717419545751,2.2199,166.67,166.61,2.2207]
[1717419546062,2.2199,166.67,166.62,0.34]
[1717419546445,2.2202,166.65,166.59,35.98985]
[1717419546770,2.2202,166.65,166.6,0.34]
[1717419547145,2.2201,166.66,166.6,0.34]
[1717419547768,2.2201,166.66,166.6,2.5608]
[1717419549264,6.0925,166.72,166.62,2.2205]
[1717419549457,2.2197,166.69,166.63,0.17]
[1717419550265,2.2198,166.68,166.61,2.2207]
[1717419550456,2.2198,166.68,166.62,0.34]
[1717419551062,20.78,166.71,166.62,0.34]
[1717419551263,20.78,166.71,166.6,2.2207]
[1717419551486,2.22,166.67,166.61,0.34]
[1717419552152,2.22,166.67,166.61,2.5607]
[1717419552369,2.2201,166.66,166.62,35.98985]
[1717419552570,4.4395,166.69,166.62,35.98985]
[1717419552765,2.2203,166.65,166.62,35.98985]
[1717419553375,2.2203,166.65,166.59,2.2209]
[1717419553376,4.4396,166.68,166.59,35.98985]
[1717419553671,4.4399,166.67,166.59,35.98985]
[1717419554178,2.2206,166.62,166.59,35.98985]
[1717419554389,2.2208,166.61,166.54,35.98985]
[1717419554561,2.2206,166.62,166.54,35.98985]
[1717419554761,2.2206,166.62,166.56,2.2214]
[1717419555164,2.2207,166.61,166.55,2.2215]
[1717419555374,2.2211,166.59,166.54,35.98985]
[1717419555676,2.2209,166.6,166.54,44.74545]
[1717419556760,2.2209,166.6,166.56,35.98985]
[1717419557272,15.539,166.68,166.57,0.17]
[1717419557458,6.93,166.62,166.58,2.2211]
[1717419557654,6.93,166.61,166.58,41.72956]
[1717419557880,6.93,166.59,166.58,35.72006]
[1717419558266,6.93,166.6,166.58,35.72006]
[1717419558790,6.93,166.6,166.55,0.17]
[1717419558791,2.2205,166.63,166.59,35.72006]
[1717419559085,6.93,166.6,166.59,35.72006]
[1717419559767,6.93,166.6,166.57,35.72006]
[1717419559961,6.93,166.59,166.57,35.72006]
[1717419560166,6.93,166.6,166.57,35.72006]
[1717419561382,6.93,166.61,166.58,35.72006]
[1717419561595,4.4402,166.66,166.6,2.2207]
[1717419561596,2.2201,166.66,166.6,2.2207]
[1717419561892,6.93,166.64,166.61,35.72006]
[1717419563278,6.93,166.63,166.61,35.72006]
[1717419563482,2.2204,166.64,166.61,35.72006]
[1717419564489,2.2205,166.63,166.59,0.17]
[1717419564686,2.2205,166.63,166.57,36.01]
[1717419564872,2.2206,166.62,166.58,0.17]
[1717419565077,6.93,166.6,166.57,36.01]
[1717419565666,6.93,166.6,166.57,38.2312]
[1717419566486,6.93,166.61,166.57,36.01]
[1717419566871,6.93,166.6,166.57,36.01]
[1717419567280,6.93,166.62,166.58,36.01]
[1717419567592,6.93,166.61,166.58,36.01]
[1717419567894,13.3193,166.68,166.58,36.01]
[1717419568103,2.2202,166.65,166.58,36.01]
[1717419568274,13.3193,166.68,166.58,36.01]
[1717419568275,2.2203,166.64,166.58,36.01]
[1717419568479,6.93,166.63,166.59,36.01]
[1717419569285,2.2204,166.63,166.59,36.01]
[1717419570174,2.2203,166.64,166.59,36.01]
[1717419570891,2.2203,166.64,166.58,2.2211]
[1717419571196,6.93,166.64,166.59,2.221]
[1717419571489,2.2202,166.65,166.58,2.2211]
[1717419571701,6.93,166.64,166.58,2.2211]
[1717419571905,2.2202,166.65,166.58,2.2211]
[1717419572107,6.93,166.64,166.58,2.2211]
[1717419572407,9.1503,166.64,166.58,2.2211]
[1717419572580,12.8956561,166.7,166.59,0.34]
[1717419572581,2.2202,166.65,166.59,0.34]
[1717419573097,2.2202,166.65,166.59,3.76091885]
[1717419573271,2.22,166.67,166.6,42.1302]
[1717419573472,2.2198,166.68,166.62,36.01]
[1717419573668,10.5313,166.72,166.64,36.01]
[1717419573905,9.1498,166.68,166.64,36.01]
[1717419574075,6.93,166.67,166.64,36.01]
[1717419574696,10.5313,166.72,166.64,36.01]
[1717419574902,6.93,166.68,166.64,36.01]
[1717419575274,2.2196,166.7,166.64,36.01]
[1717419575487,6.93,166.68,166.64,36.01]
[1717419576615,6.93,166.67,166.64,36.01]
[1717419576905,2.2197,166.69,166.64,36.01]
[1717419577108,2.2195,166.7,166.64,36.01]
[1717419577507,2.2194,166.71,166.64,38.2302]
[1717419577710,2.2194,166.71,166.65,2.5602]
[1717419578022,17.29721273,166.74,166.65,0.34]
[1717419578207,6.93,166.72,166.66,38.2299]
[1717419578529,24.22721273,166.72,166.68,42.4441]
[1717419578697,4.4373,166.77,166.7,36.01]
[1717419578698,2.219,166.74,166.7,36.01]
[1717419578898,2.2188,166.75,166.7,36.01]
[1717419579308,2.219,166.74,166.7,36.01]
[1717419579615,21.73364303,166.78,166.7,36.01]
[1717419579616,2.2191,166.73,166.7,36.01]
[1717419579914,2.219,166.74,166.71,36.01]
[1717419580487,17.29664303,166.78,166.71,36.01]
[1717419580708,6.93,166.75,166.72,37.20977151]
[1717419581018,2.2187,166.76,166.72,36.01]
[1717419581598,21.72770917,166.79,166.72,36.01]
[1717419581822,21.72770917,166.79,166.69,36.35]
[1717419581993,2.2189,166.75,166.69,38.5696]
[1717419582193,2.2187,166.76,166.69,38.5696]
[1717419582414,2.2189,166.75,166.69,38.5696]
[1717419582622,2.219,166.74,166.69,36.35]
[1717419583798,6.93,166.72,166.69,8.5694]
[1717419584103,6.93,166.72,166.7,36.01]
[1717419584411,6.93,166.71,166.7,36.01]
[1717419585620,2.2192,166.73,166.7,36.01]
[1717419585841,6.93,166.72,166.7,36.01]
[1717419585998,6.93,166.73,166.69,8.3541]
[1717419586329,6.93,166.73,166.7,36.01]
[1717419586903,2.2191,166.73,166.7,36.01]
[1717419587204,6.93,166.72,166.68,2.3898]
[1717419587397,2.2191,166.73,166.68,0.17]
[1717419587606,6.93,166.71,166.68,2.3897]
[1717419587808,6.93,166.72,166.69,36.01]
[1717419588137,6.93,166.72,166.69,38.2296]
[1717419588337,6.93,166.72,166.69,36.01]
[1717419588618,2.219,166.74,166.69,36.01]
[1717419588824,6.93,166.72,166.69,38.2296]
[1717419589199,2.2189,166.75,166.69,38.2296]
[1717419589399,6.93,166.73,166.7,0.17]
[1717419589625,6.93,166.74,166.71,36.01]
[1717419590915,2.2189,166.75,166.71,36.01]
[1717419591126,6.93,166.73,166.71,36.01]
[1717419592932,2.2191,166.73,166.71,36.01]
[1717419593104,6.93,166.72,166.71,36.01]
[1717419593311,9.1492,166.72,166.71,36.01]
[1717419593509,4.4375,166.76,166.71,36.01]
[1717419593510,2.2192,166.73,166.71,36.01]
[1717419593711,6.93,166.72,166.71,36.01]
[1717419594107,6.93,166.72,166.68,8.3227]
[1717419594310,6.93,166.72,166.69,38.2296]
[1717419594524,2.2189,166.75,166.69,44.3326]
[1717419594727,6.93,166.73,166.69,44.3326]
[1717419595330,2.2189,166.75,166.69,42.113]
[1717419595640,6.93,166.73,166.7,2.2195]
[1717419596206,6.93,166.73,166.69,44.3326]
[1717419597426,2.2189,166.75,166.69,44.3326]
[1717419597931,2.2189,166.75,166.7,2.2195]
[1717419598115,2.219,166.74,166.69,44.3326]
[1717419599528,2.2189,166.75,166.69,44.3326]
[1717419599833,2.2189,166.75,166.7,2.2195]
[1717419600011,60.0,166.88,166.7,2.2195]
[1717419600012,4.4364,166.81,166.72,42.0657]
[1717419600213,2.2185,166.78,166.72,44.2849]
[1717419600435,21.72816611,166.81,166.72,42.0657]
[1717419600436,2.2186,166.77,166.72,42.0657]
[1717419601911,2.2189,166.75,166.72,36.01]
[1717419602124,2.219,166.74,166.72,36.01]
[1717419602315,2.2191,166.73,166.72,36.01]
[1717419602639,2.219,166.74,166.72,36.01]
[1717419602939,2.219,166.74,166.68,38.2297]
[1717419603152,2.2186,166.77,166.71,2.2193]
[1717419603308,2.2186,166.77,166.68,67.3229]
[1717419603512,12.57565786,166.84,166.7,49.6053]
[1717419603513,17.01115786,166.84,166.7,49.6053]
[1717419603714,17.01115786,166.84,166.75,2.2188]
[1717419603715,0.3591,166.77,166.75,2.2188]
[1717419603937,0.3591,166.77,166.75,38.2288]
[1717419604142,0.3591,166.77,166.76,2.2187]
[1717419604334,0.3591,166.77,166.75,38.2288]
[1717419604513,0.3591,166.77,166.75,36.01]
[1717419605024,6.93,166.76,166.73,36.01]
[1717419605243,9.1487,166.76,166.73,36.01]
[1717419605443,0.3591,166.77,166.73,36.01]
[1717419605645,6.93,166.76,166.73,38.2291]
[1717419605827,0.3591,166.77,166.73,36.01]
[1717419606349,0.3591,166.77,166.74,42.0133]
[1717419607117,0.3591,166.77,166.74,44.2323]
[1717419607618,0.3591,166.77,166.74,42.0133]
[1717419608716,0.3591,166.77,166.75,8.7701]
[1717419609035,0.3591,166.77,166.76,36.01]
[1717419609448,0.3591,166.77,166.76,42.5613]
[1717419609639,0.3591,166.77,166.76,42.7313]
[1717419609822,0.3591,166.77,166.76,60.4431]
[1717419610158,0.3591,166.77,166.76,60.6131]
[1717419614822,0.3591,166.77,166.76,45.12]
[1717419615630,0.3591,166.77,166.76,44.95]
[1717419616358,0.3591,166.77,166.76,36.01]
[1717419617224,0.3591,166.77,166.76,38.2287]
[1717419617847,0.3591,166.77,166.76,38.3987]
[1717419618030,0.3591,166.77,166.76,36.01]
[1717419618549,0.3591,166.77,166.72,42.6121]
[1717419618764,0.3591,166.77,166.73,2.2191]
[1717419619131,0.3591,166.77,166.74,2.219]
[1717419619946,0.3591,166.77,166.72,42.6121]
[1717419619947,0.3591,166.77,166.73,2.2191]
[1717419620157,2.5777,166.77,166.72,44.8313]
[1717419620525,2.5777,166.77,166.72,2.2192]
[1717419620826,2.219,166.74,166.7,36.01]
[1717419621521,2.219,166.74,166.71,36.01]
[1717419622638,2.2191,166.73,166.71,36.01]
[1717419622853,2.219,166.74,166.71,36.01]
[1717419623670,2.219,166.74,166.69,2.2196]
[1717419624041,2.219,166.74,166.7,2.39880637]
[1717419624236,2.219,166.74,166.71,2.39866247]
[1717419624467,2.2191,166.73,166.68,2.2198]
[1717419624849,2.219,166.74,166.69,2.2196]
[1717419625672,2.2192,166.73,166.68,2.2197]
[1717419626018,2.219,166.74,166.69,2.2196]
[1717419626142,2.2189,166.75,166.7,2.2195]
[1717419626570,2.219,166.74,166.69,2.2196]
[1717419627968,9.129,166.74,166.69,2.2196]
[1717419628478,0.3591,166.77,166.71,6.91]
[1717419628643,0.3591,166.77,166.75,2.2187]
[1717419628844,0.3591,166.77,166.73,13.0889]
[1717419629045,0.3591,166.77,166.74,0.17]
[1717419629278,0.3591,166.77,166.73,2.219]
[1717419630875,0.3591,166.77,166.72,2.2192]
[1717419631074,0.3591,166.77,166.73,2.2191]
[1717419632187,2.5777,166.77,166.72,2.3892]
[1717419632367,0.3591,166.77,166.69,6.3077]
[1717419632564,6.91,166.74,166.7,20.17]
[1717419632760,2.5777,166.77,166.72,2.2192]
[1717419633289,6.91,166.76,166.72,2.2192]
[1717419633856,9.1287,166.76,166.71,2.2194]
[1717419634084,6.91,166.75,166.71,2.2193]
[1717419634395,6.91,166.74,166.7,2.2194]
[1717419634570,2.2188,166.76,166.71,2.2194]
[1717419634772,2.5777,166.77,166.71,2.2194]
[1717419634958,6.91,166.75,166.71,2.2194]
[1717419636180,6.91,166.73,166.66,54.98234082]
[1717419636384,6.91,166.73,166.67,20.34]
[1717419636590,6.91,166.73,166.7,2.2195]
[1717419636789,6.91,166.74,166.7,2.2195]
[1717419637090,6.91,166.73,166.69,2.2196]
[1717419637285,6.91,166.73,166.68,2.2198]
[1717419637689,6.91,166.72,166.68,2.2198]
[1717419637900,2.2193,166.72,166.66,2.2199]
[1717419638192,2.2193,166.72,166.67,2.2199]
[1717419638375,2.2193,166.72,166.64,61.16233975]
[1717419638574,2.2193,166.72,166.67,2.2199]
[1717419638894,2.2191,166.73,166.67,2.2199]
[1717419639093,2.2193,166.72,166.65,2.2201]
[1717419639403,2.2194,166.72,166.66,2.22]
[1717419640195,6.91,166.68,166.61,61.90884113]
[1717419640511,6.91,166.68,166.63,2.2204]
[1717419641036,6.91,166.68,166.64,2.2203]
[1717419641769,6.91,166.68,166.63,2.2204]
[1717419642776,6.91,166.67,166.62,3.77884054]
[1717419643082,6.91,166.66,166.63,0.17]
[1717419643266,6.91,166.66,166.62,1.38834054]
[1717419643464,6.91,166.65,166.62,1.38834054]
[1717419643870,13.2159,166.72,166.62,1.38834054]
[1717419643871,6.91,166.64,166.62,1.38834054]
[1717419644069,2.2201,166.66,166.62,1.38834054]
[1717419644285,6.91,166.63,166.62,1.38834054]
[1717419645321,2.2202,166.65,166.62,1.38834054]
[1717419645493,2.22,166.67,166.62,1.38834054]
[1717419645698,2.22,166.67,166.62,2.58564799]
[1717419645903,6.91,166.68,166.62,4.80614799]
[1717419646212,6.5659,166.71,166.63,2.2204]
[1717419646379,6.5659,166.71,166.63,1.19833485]
[1717419646580,2.2193,166.72,166.67,2.2199]
[1717419646798,6.5659,166.75,166.68,1.19797537]
[1717419647110,6.91,166.73,166.66,7.25]
[1717419647296,6.91,166.73,166.68,2.2197]
[1717419647702,2.2191,166.73,166.68,2.2197]
[1717419647906,6.91,166.69,166.66,0.34]
[1717419648084,6.91,166.69,166.62,1.38834054]
[1717419648085,6.91,166.67,166.62,1.38834054]
[1717419648282,15.5334,166.74,166.64,2.2203]
[1717419648283,2.2196,166.7,166.64,2.2203]
[1717419648525,2.2197,166.69,166.64,2.2203]
[1717419648682,2.2196,166.7,166.65,0.17]
[1717419648889,9.1297,166.69,166.63,2.5604]
[1717419649410,9.1298,166.68,166.63,2.2204]
[1717419649783,2.2197,166.69,166.63,6.91]
[1717419649988,6.5659,166.75,166.62,1.38834054]
[1717419650199,6.5659,166.75,166.63,4.4409]
[1717419650404,0.3591,166.77,166.63,24.4409]
[1717419650599,2.2191,166.73,166.68,2.2197]
[1717419650800,2.2193,166.72,166.66,2.22]
[1717419651008,8.8755,166.75,166.64,0.17]
[1717419651217,4.4383,166.73,166.63,2.5604]
[1717419651587,2.2195,166.7,166.63,2.5604]
[1717419651797,2.2195,166.7,166.64,2.2203]
[1717419653117,6.6569,166.75,166.65,2.2202]
[1717419653330,2.2195,166.7,166.64,2.2203]
[1717419653617,2.2195,166.7,166.65,0.17]
[1717419653916,2.2194,166.71,166.65,2.2202]
[1717419654422,0.3591,166.77,166.69,2.2196]
[1717419654633,2.219,166.75,166.69,2.2196]
[1717419655284,2.2191,166.73,166.67,2.2198]
[1717419655511,2.219,166.74,166.68,2.5598]
[1717419655703,2.219,166.74,166.68,2.3898]
[1717419655901,2.2191,166.73,166.68,0.17]
[1717419656107,2.2192,166.72,166.67,2.3899]
[1717419656298,0.3591,166.77,166.68,0.17]
[1717419656486,2.2191,166.73,166.68,0.17]
[1717419656919,2.2193,166.72,166.65,2.2202]
[1717419657089,2.2193,166.72,166.66,0.34]
[1717419657291,2.2193,166.72,166.66,2.56]
[1717419657506,2.2193,166.72,166.67,2.2199]
[1717419657927,2.2193,166.72,166.66,2.56]
[1717419658106,4.4378,166.75,166.66,0.34]
[1717419658420,2.2195,166.71,166.65,2.2202]
[1717419658627,2.2195,166.71,166.66,2.22]
[1717419659216,2.2195,166.7,166.65,2.2202]
[1717419659590,4.4383,166.73,166.62,41.78628312]
[1717419659793,2.2195,166.71,166.62,41.78628312]
[1717419660010,2.2195,166.71,166.65,2.2201]
[1717419660190,2.2197,166.69,166.63,2.2204]
[1717419660910,4.4385,166.72,166.61,2.2206]